bitfinex/quotes_BTCUSD_20240712
["timestamp","ask_amount","ask_price","bid_price","bid_amount"]
[1720804186677,1.79720677,58188.0,58187.0,0.04771796]
[1720804186811,1.79720677,58188.0,58187.0,0.028913]
[1720804186812,2.31169329,58188.0,58187.0,0.028913]
[1720804187017,2.18342839,58188.0,58187.0,0.028913]
[1720804187239,2.18342839,58188.0,58187.0,0.014913]
[1720804187457,2.18036486,58188.0,58187.0,0.014913]
[1720804188308,2.18036486,58188.0,58187.0,0.000913]
[1720804188507,2.18236486,58188.0,58187.0,0.000913]
[1720804188937,2.18542839,58188.0,58187.0,0.000913]
[1720804189147,2.18036486,58188.0,58187.0,0.000913]
[1720804189349,2.09116097,58188.0,58187.0,0.000913]
[1720804189554,1.85199694,58188.0,58187.0,0.000913]
[1720804189760,1.74944797,58188.0,58187.0,0.000913]
[1720804189956,1.85200625,58188.0,58187.0,0.000913]
[1720804190400,0.53772563,58188.0,58187.0,0.000913]
[1720804190602,0.45880103,58188.0,58187.0,0.000913]
[1720804190851,0.74192969,58188.0,58187.0,0.02373139]
[1720804190997,1.50923492,58188.0,58187.0,0.02373139]
[1720804191215,1.50923492,58188.0,58187.0,0.000913]
[1720804191216,1.77604096,58188.0,58187.0,0.000913]
[1720804191416,1.87857966,58188.0,58187.0,0.000913]
[1720804191616,1.77404096,58188.0,58187.0,0.004913]
[1720804191966,1.43032796,58188.0,58187.0,0.004913]
[1720804192174,1.40699111,58188.0,58187.0,0.004913]
[1720804192377,1.75070411,58188.0,58187.0,0.007913]
[1720804192618,1.74870411,58188.0,58187.0,0.007913]
[1720804192809,1.00169522,58188.0,58187.0,0.007913]
[1720804193016,0.56299664,58188.0,58187.0,0.009913]
[1720804193203,0.65806408,58188.0,58187.0,0.009913]
[1720804193409,0.65806408,58188.0,58187.0,0.03073139]
[1720804193540,0.65806408,58188.0,58187.0,0.007913]
[1720804193983,0.65606408,58188.0,58187.0,0.000913]
[1720804194320,0.36882368,58188.0,58187.0,0.000913]
[1720804194504,0.36882368,58188.0,58187.0,0.86021]
[1720804194711,0.20568321,58188.0,58187.0,0.8830582]
[1720804194904,0.20568321,58188.0,58187.0,0.8860582]
[1720804195315,0.20468321,58188.0,58187.0,0.8860582]
[1720804195518,0.20468321,58188.0,58187.0,0.8880582]
[1720804195717,0.22002368,58188.0,58187.0,0.87462779]
[1720804195921,0.22002368,58188.0,58187.0,0.87762779]
[1720804196468,0.22002368,58188.0,58187.0,1.22134679]
[1720804196469,0.20268321,58188.0,58187.0,1.22134679]
[1720804196677,0.20268321,58188.0,58187.0,1.21934679]
[1720804196869,0.22002368,58188.0,58187.0,1.21434679]
[1720804197295,0.22002368,58188.0,58187.0,1.21225979]
[1720804197515,0.20268321,58188.0,58187.0,1.21225979]
[1720804197760,0.20268321,58188.0,58187.0,1.22625979]
[1720804197963,0.22002368,58188.0,58187.0,0.88254079]
[1720804198108,0.22002368,58188.0,58187.0,0.89654079]
[1720804198531,0.22002368,58188.0,58187.0,0.88254079]
[1720804199595,0.16768764,58188.0,58187.0,0.88254079]
[1720804199783,0.22041456,58188.0,58187.0,0.89654079]
[1720804200116,0.22010261,58188.0,58187.0,0.89654079]
[1720804200340,0.35690261,58188.0,58187.0,0.0517612]
[1720804200784,0.35690261,58188.0,58187.0,0.2096202]
[1720804201197,0.35690261,58188.0,58187.0,0.5673392]
[1720804201996,0.30448764,58188.0,58187.0,0.5673392]
[1720804202197,0.3567979,58188.0,58187.0,0.5673392]
[1720804202701,0.3567979,58188.0,58187.0,0.0517612]
[1720804203100,0.44729063,58188.0,58187.0,0.0517612]
[1720804203361,0.3567979,58188.0,58187.0,0.0517612]
[1720804203916,0.44705858,58188.0,58187.0,0.0517612]
[1720804204919,1.48323547,58188.0,58187.0,0.0517612]
[1720804205445,1.33313583,58188.0,58187.0,0.028913]
[1720804206033,1.33313583,58188.0,58187.0,0.05177082]
[1720804206372,0.98942283,58188.0,58187.0,0.05177082]
[1720804206785,1.04942283,58188.0,58187.0,0.05177082]
[1720804206998,1.04942283,58188.0,58187.0,0.028913]
[1720804207657,0.98942283,58188.0,58187.0,0.028913]
[1720804208645,0.84696412,58188.0,58187.0,0.028913]
[1720804208832,0.98982264,58188.0,58187.0,0.028913]
[1720804209188,1.04982264,58188.0,58187.0,0.05177082]
[1720804209384,0.98982264,58188.0,58187.0,0.05177082]
[1720804209795,1.56377304,58188.0,58187.0,0.05177082]
[1720804210206,1.2713165,58188.0,58187.0,0.05177082]
[1720804210410,1.6150295,58188.0,58187.0,0.05177082]
[1720804211911,1.42091452,58188.0,58187.0,0.05177082]
[1720804212116,1.61409913,58188.0,58187.0,0.05177082]
[1720804212290,1.69099442,58188.0,58187.0,0.05177082]
[1720804212496,1.69099442,58188.0,58187.0,0.028913]
[1720804212497,2.03470655,58188.0,58187.0,0.028913]
[1720804213080,1.90654773,58188.0,58187.0,0.014913]
[1720804213686,2.03471348,58188.0,58187.0,0.014913]
[1720804213886,1.90654773,58188.0,58187.0,0.014913]
[1720804214568,1.90654773,58188.0,58187.0,0.022913]
[1720804214763,1.90654773,58188.0,58187.0,0.008913]
[1720804214971,1.90671249,58188.0,58187.0,0.008913]
[1720804215179,1.90671249,58188.0,58187.0,0.016913]
[1720804215385,1.90671588,58188.0,58187.0,0.016913]
[1720804216161,1.73647848,58188.0,58187.0,0.016913]
[1720804216981,1.39276548,58188.0,58187.0,0.016913]
[1720804217431,1.73647848,58188.0,58187.0,0.016913]
[1720804217790,0.70533948,58188.0,58187.0,0.016913]
[1720804218153,0.56943948,58188.0,58187.0,0.016913]
[1720804218376,1.0413834,58188.0,58187.0,0.016913]
[1720804218546,0.91392145,58188.0,58187.0,0.03754245]
[1720804218747,0.91392145,58188.0,58187.0,0.016913]
[1720804219705,1.07093741,58188.0,58187.0,0.016913]
[1720804219909,0.44006023,58188.0,58187.0,0.532491]
[1720804220345,0.33745245,58188.0,58187.0,0.55317918]
[1720804220745,0.31054497,58188.0,58187.0,0.89689818]
[1720804221373,0.0553507,58188.0,58187.0,1.24061718]
[1720804221781,0.05522072,58188.0,58187.0,1.24061718]
[1720804222285,0.21991565,58188.0,58187.0,1.24061718]
[1720804223290,0.05522072,58188.0,58187.0,1.24061718]
[1720804223669,0.20257518,58188.0,58187.0,1.24061718]
[1720804223865,0.05522072,58188.0,58187.0,1.24061718]
[1720804224456,0.20257518,58188.0,58187.0,1.24061718]
[1720804224659,0.21991565,58188.0,58187.0,1.24061718]
[1720804224878,0.21991565,58188.0,58187.0,1.22461718]
[1720804225102,0.21950022,58188.0,58187.0,1.22461718]
[1720804225332,0.21950022,58188.0,58187.0,1.25261718]
[1720804226934,0.21950022,58188.0,58187.0,0.90889818]
[1720804228456,0.21903228,58188.0,58187.0,0.90889818]
[1720804229092,0.16768764,58188.0,58187.0,0.90889818]
[1720804229227,0.21912556,58188.0,58187.0,0.90889818]
[1720804231902,0.21908534,58188.0,58187.0,0.90889818]
[1720804232318,0.16768764,58188.0,58187.0,0.90889818]
[1720804232507,0.21903473,58188.0,58187.0,0.90889818]
[1720804234491,0.21924617,58188.0,58187.0,0.90889818]
[1720804235094,0.21923903,58188.0,58187.0,0.90889818]
[1720804235765,0.20189856,58188.0,58187.0,0.90889818]
[1720804236175,0.20189856,58188.0,58187.0,1.88798219]
[1720804236176,0.0545441,58188.0,58187.0,1.88798219]
[1720804236370,0.0545441,58188.0,58187.0,1.86503618]
[1720804236580,0.0545441,58188.0,58187.0,1.91098219]
[1720804237188,0.0545441,58188.0,58187.0,1.89698219]
[1720804237887,0.0545441,58188.0,58187.0,1.91098219]
[1720804238295,0.05440361,58188.0,58187.0,1.91098219]
[1720804238495,0.00299271,58188.0,58187.0,2.01098219]
[1720804238718,0.00299271,58188.0,58187.0,1.91178219]
[1720804241534,0.00299271,58188.0,58187.0,1.92224289]
[1720804242328,0.18178464,58188.0,58187.0,1.92224289]
[1720804242529,0.18178464,58188.0,58187.0,1.89924289]
[1720804244181,0.18178464,58188.0,58187.0,1.95188843]
[1720804245023,0.18178464,58188.0,58187.0,1.89924289]
[1720804245373,0.18178464,58188.0,58187.0,1.95188843]
[1720804246693,0.18178464,58188.0,58187.0,1.89407011]
[1720804246862,0.18178464,58188.0,58187.0,1.94671565]
[1720804247272,0.18178464,58188.0,58187.0,1.96971565]
[1720804247630,0.18178464,58188.0,58187.0,2.31343465]
[1720804248643,0.18178464,58188.0,58187.0,2.26078911]
[1720804249666,0.18178464,58188.0,58187.0,2.31343465]
[1720804249934,0.18178464,58188.0,58187.0,2.26078911]
[1720804250264,0.18178464,58188.0,58187.0,3.00878235]
[1720804250510,0.01557647,58194.0,58193.0,0.47043255]
[1720804250715,0.01557647,58194.0,58193.0,1.46303648]
[1720804250899,0.01557647,58194.0,58193.0,2.67259041]
[1720804251102,0.01557647,58194.0,58193.0,3.01627341]
[1720804252291,0.00828,58195.0,58193.0,3.01627341]
[1720804252292,0.00828,58195.0,58194.0,2.89106855]
[1720804252423,0.00828,58195.0,58194.0,3.20033911]
[1720804252621,0.00828,58195.0,58194.0,3.21584277]
[1720804253998,0.00828,58195.0,58194.0,3.22984277]
[1720804254211,0.00828,58195.0,58194.0,3.24384277]
[1720804254398,1e-08,58195.0,58194.0,3.24384277]
[1720804254616,0.002,58199.0,58198.0,3.08891255]
[1720804254779,0.002,58199.0,58198.0,3.38214125]
[1720804254938,0.002,58199.0,58198.0,3.39763663]
[1720804255801,0.002,58199.0,58198.0,3.41163663]
[1720804256007,0.98620641,58200.0,58199.0,2.88887355]
[1720804256339,0.98620641,58200.0,58199.0,3.54181859]
[1720804257092,0.9121837,58200.0,58199.0,3.54181859]
[1720804257298,0.77488044,58200.0,58199.0,3.66104359]
[1720804257456,0.77488044,58200.0,58199.0,3.67504359]
[1720804257457,0.74437728,58200.0,58199.0,3.67504359]
[1720804257660,0.73437728,58200.0,58199.0,3.67504359]
[1720804258761,0.72277532,58200.0,58199.0,3.66104359]
[1720804259169,0.72277532,58200.0,58199.0,3.68904359]
[1720804259556,0.72277532,58200.0,58199.0,3.67504359]
[1720804260000,0.72277532,58200.0,58199.0,3.68904359]
[1720804260206,0.51761025,58200.0,58199.0,3.68904359]
[1720804260634,0.49169125,58200.0,58199.0,3.68904359]
[1720804260807,0.48169125,58200.0,58199.0,3.68904359]
[1720804261151,0.2164471,58200.0,58199.0,3.68904359]
[1720804261427,0.1477191,58200.0,58199.0,3.34482136]
[1720804261669,0.02155028,58213.0,58210.0,0.29859155]
[1720804261886,0.02155028,58213.0,58212.0,1.22074301]
[1720804262114,0.02155028,58213.0,58212.0,1.89671371]
[1720804262343,0.02155028,58213.0,58212.0,2.26328471]
[1720804262579,0.02155028,58213.0,58212.0,2.36328471]
[1720804262777,0.02155028,58213.0,58212.0,1.71900674]
[1720804263007,0.02155028,58213.0,58212.0,1.66153674]
[1720804263447,0.02155028,58213.0,58212.0,1.74195275]
[1720804263664,0.02155028,58213.0,58212.0,1.75595275]
[1720804263888,0.02155028,58213.0,58212.0,1.76995275]
[1720804264124,0.02155028,58213.0,58212.0,1.75595275]
[1720804264394,0.02155028,58213.0,58212.0,1.74195275]
[1720804265739,0.02155028,58213.0,58212.0,1.76995275]
[1720804265912,0.02155028,58213.0,58212.0,1.75595275]
[1720804266114,0.02155028,58213.0,58212.0,1.74195275]
[1720804266315,0.02155028,58213.0,58212.0,1.76995275]
[1720804269701,0.02155028,58213.0,58212.0,1.78027986]
[1720804269903,0.02155028,58213.0,58212.0,1.73433385]
[1720804270300,0.02155028,58213.0,58212.0,1.78027986]
[1720804271152,0.02155028,58213.0,58212.0,1.76627986]
[1720804271352,0.02155028,58213.0,58212.0,1.78027986]
[1720804271737,0.02155028,58213.0,58212.0,1.76627986]
[1720804271983,0.02155028,58213.0,58212.0,1.78027986]
[1720804272203,0.02155028,58213.0,58212.0,1.95050856]
[1720804272405,0.02155028,58213.0,58212.0,2.5466541]
[1720804272606,0.00083,58218.0,58217.0,0.40483255]
[1720804272798,0.00083,58218.0,58217.0,1.63294525]
[1720804273002,0.00083,58218.0,58217.0,2.67903168]
[1720804274422,0.00083,58218.0,58217.0,2.69303168]
[1720804274648,0.00083,58218.0,58217.0,3.21797368]
[1720804274852,0.00083,58218.0,58217.0,3.35707368]
[1720804275046,0.02229448,58222.0,58217.0,3.35707368]
[1720804275047,0.02229448,58222.0,58221.0,2.74291055]
[1720804275250,0.01895718,58232.0,58228.0,0.31768401]
[1720804275454,0.01895718,58232.0,58228.0,0.97401412]
[1720804275657,0.01895718,58232.0,58228.0,2.0283134]
[1720804276053,0.0633,58229.0,58228.0,1.6618364]
[1720804276913,0.0633,58229.0,58228.0,1.6758364]
[1720804277452,0.002,58229.0,58228.0,2.0423134]
[1720804277660,0.002,58229.0,58228.0,2.0767834]
[1720804277999,0.002,58229.0,58228.0,2.0907834]
[1720804278412,0.002,58229.0,58228.0,2.12272941]
[1720804278973,0.002,58229.0,58228.0,2.13672941]
[1720804279376,0.002,58229.0,58228.0,2.12272941]
[1720804279529,0.002,58229.0,58228.0,2.13672941]
[1720804280140,0.002,58229.0,58228.0,2.12272941]
[1720804280541,0.002,58229.0,58228.0,1.79250718]
[1720804280973,0.002,58229.0,58228.0,1.82880718]
[1720804281185,0.002,58229.0,58228.0,1.42933447]
[1720804281383,0.002,58229.0,58228.0,1.42033447]
[1720804281583,0.30919493,58229.0,58228.0,0.11816547]
[1720804281785,0.30919493,58229.0,58228.0,0.10774517]
[1720804281985,0.35905512,58229.0,58228.0,0.01544517]
[1720804282409,0.35905512,58229.0,58225.0,0.412333]
[1720804282410,0.39643893,58226.0,58225.0,0.068839]
[1720804282734,0.35565512,58226.0,58225.0,0.068839]
[1720804282941,0.35871865,58226.0,58225.0,0.068839]
[1720804283086,0.1411,58225.0,58223.0,0.171751]
[1720804283292,0.28042688,58224.0,58223.0,0.171751]
[1720804283494,0.26308641,58224.0,58223.0,0.515257]
[1720804283697,0.21015446,58224.0,58223.0,0.515257]
[1720804283895,0.2600554,58224.0,58223.0,0.515257]
[1720804284373,0.2600554,58224.0,58223.0,0.858763]
[1720804284374,0.11270094,58224.0,58223.0,0.858763]
[1720804284575,0.11270094,58224.0,58223.0,1.202269]
[1720804285013,0.11270094,58224.0,58223.0,1.216269]
[1720804285827,0.11270094,58224.0,58223.0,1.230269]
[1720804286031,0.2600554,58224.0,58223.0,1.230269]
[1720804286370,0.26054827,58224.0,58223.0,1.216269]
[1720804286581,0.26054827,58224.0,58223.0,1.230269]
[1720804286705,0.26054827,58224.0,58223.0,1.229569]
[1720804287116,0.26054827,58224.0,58223.0,1.215569]
[1720804287327,0.26054827,58224.0,58223.0,1.229569]
[1720804287525,0.26054827,58224.0,58223.0,1.229169]
[1720804287725,0.26054827,58224.0,58223.0,1.200869]
[1720804287932,0.11319381,58224.0,58223.0,1.214869]
[1720804288158,0.11319381,58224.0,58223.0,1.228869]
[1720804288792,0.11319381,58224.0,58223.0,1.200869]
[1720804289197,0.11319381,58224.0,58223.0,1.214869]
[1720804289393,0.11319381,58224.0,58223.0,1.228869]
[1720804289646,0.05039381,58224.0,58223.0,1.228869]
[1720804289830,0.0609,58226.0,58223.0,0.028]
[1720804290029,0.0609,58226.0,58225.0,0.515242]
[1720804290182,0.11130747,58226.0,58225.0,1.202232]
[1720804291156,0.05040747,58226.0,58225.0,1.59167301]
[1720804291368,0.002,58229.0,58227.0,0.686966]
[1720804291593,0.05032625,58228.0,58227.0,1.20292923]
[1720804292219,0.05032625,58228.0,58227.0,1.54641223]
[1720804293028,0.05032625,58228.0,58227.0,1.56041223]
[1720804293777,0.05032625,58228.0,58227.0,1.57510649]
[1720804293971,0.002,58229.0,58228.0,1.202169]
[1720804294172,0.052775,58229.0,58228.0,1.202169]
[1720804294410,0.052775,58229.0,58228.0,1.26280801]
[1720804295418,0.052775,58229.0,58228.0,1.27680801]
[1720804295623,0.052775,58229.0,58228.0,1.244862]
[1720804296650,0.05246514,58229.0,58228.0,1.63428501]
[1720804296849,0.05246514,58229.0,58228.0,1.65728501]
[1720804297079,0.05246514,58229.0,58228.0,1.73228501]
[1720804297278,0.05246514,58229.0,58228.0,2.59660625]
[1720804297279,0.002,58229.0,58228.0,2.59660625]
[1720804298136,0.002,58229.0,58228.0,2.58260625]
[1720804298537,0.002,58229.0,58228.0,2.59660625]
[1720804298967,0.002,58229.0,58228.0,2.51596071]
[1720804299172,0.002,58229.0,58228.0,2.54396071]
[1720804299575,0.00283,58229.0,58228.0,2.54396071]
[1720804299750,0.00283,58229.0,58228.0,2.48046071]
[1720804299958,0.00283,58229.0,58228.0,1.76875501]
[1720804300186,0.00283,58229.0,58228.0,1.722809]
[1720804300786,0.00283,58229.0,58228.0,1.708809]
[1720804301192,0.00283,58229.0,58228.0,1.722809]
[1720804301391,0.00283,58229.0,58228.0,1.708809]
[1720804301813,0.00283,58229.0,58228.0,1.330862]
[1720804302016,0.19854434,58229.0,58228.0,1.344862]
[1720804302535,0.14853,58229.0,58228.0,1.344862]
[1720804303254,0.19813657,58229.0,58228.0,1.344862]
[1720804304706,0.19783928,58229.0,58228.0,1.344862]
[1720804304908,0.36253421,58229.0,58228.0,1.344862]
[1720804305118,0.36253421,58229.0,58228.0,0.901385]
[1720804306019,0.36253421,58229.0,58228.0,0.887385]
[1720804306428,0.31292764,58229.0,58228.0,0.887385]
[1720804306583,0.36297498,58229.0,58228.0,0.887385]
[1720804306987,0.36311663,58229.0,58228.0,0.873385]
[1720804307464,0.36311663,58229.0,58228.0,0.887385]
[1720804307799,0.34577616,58229.0,58228.0,0.887385]
[1720804308052,0.1984217,58229.0,58228.0,0.887385]
[1720804308405,0.1984217,58229.0,58228.0,0.901385]
[1720804308854,0.34577616,58229.0,58228.0,0.901385]
[1720804309023,0.1984217,58229.0,58228.0,0.901385]
[1720804309703,0.14823271,58229.0,58228.0,0.901385]
[1720804309913,0.19896091,58229.0,58228.0,0.901385]
[1720804311258,0.19896091,58229.0,58228.0,1.244862]
[1720804312084,0.05326091,58229.0,58228.0,1.77148501]
[1720804312289,0.05326091,58229.0,58228.0,2.28519071]
[1720804312540,0.00253271,58229.0,58228.0,2.59525625]
[1720804313344,0.00253271,58229.0,58228.0,2.54261071]
[1720804313931,0.00253271,58229.0,58228.0,2.52861071]
[1720804314139,0.00253271,58229.0,58228.0,2.59525625]
[1720804314825,0.00253271,58229.0,58228.0,2.56725625]
[1720804315028,0.00253271,58229.0,58228.0,2.58125625]
[1720804315453,0.00253271,58229.0,58228.0,2.59525625]
[1720804315878,0.00253271,58229.0,58228.0,2.58125625]
[1720804316084,0.00253271,58229.0,58228.0,2.59525625]
[1720804316640,0.00253271,58229.0,58228.0,2.58125625]
[1720804317745,0.00253271,58229.0,58228.0,2.56725625]
[1720804317964,0.00253271,58229.0,58228.0,2.59525625]
[1720804318345,0.00253271,58229.0,58228.0,2.58125625]
[1720804318500,0.00253271,58229.0,58228.0,2.56725625]
[1720804318702,0.00253271,58229.0,58228.0,2.59525625]
[1720804319549,0.0045937,58234.0,58229.0,0.1482]
[1720804319720,0.00828,58235.0,58234.0,0.51441155]
[1720804319721,7e-07,58235.0,58234.0,0.51441155]
[1720804319941,0.00306353,58245.0,58244.0,0.24594601]
[1720804320286,0.00828,58247.0,58246.0,1.03879301]
[1720804320400,0.00828,58247.0,58246.0,1.72996401]
[1720804320604,0.00828,58247.0,58246.0,2.62459539]
[1720804321030,0.00328,58247.0,58246.0,2.62459539]
[1720804321224,0.00828,58259.0,58246.0,3.81232281]
[1720804321431,1e-08,58250.0,58249.0,1.02944055]
[1720804321631,0.00828,58259.0,58250.0,1.27277855]
[1720804321840,0.00828,58259.0,58250.0,2.25357648]
[1720804322036,0.00828,58259.0,58250.0,2.95492352]
[1720804322237,0.00828,58259.0,58258.0,1.59079601]
[1720804322439,0.00828,58259.0,58258.0,2.5691888]
[1720804322636,0.00828,58259.0,58258.0,2.5838317]
[1720804322865,0.00828,58259.0,58258.0,3.0919317]
[1720804323080,1e-08,58259.0,58258.0,3.38206077]
[1720804323277,1e-08,58259.0,58258.0,3.66039724]
[1720804323483,0.03053929,58260.0,58259.0,2.40252855]
[1720804323484,0.00562196,58260.0,58259.0,2.40252855]
[1720804323708,0.00556196,58260.0,58259.0,3.01911478]
[1720804324032,0.00556196,58260.0,58259.0,3.13945642]
[1720804324354,0.00556196,58260.0,58259.0,3.22457077]
[1720804324529,0.0312889,58269.0,58268.0,2.03377101]
[1720804324745,0.0312889,58269.0,58268.0,3.18312194]
[1720804325141,0.0312889,58269.0,58268.0,3.19774679]
[1720804325524,0.0312889,58269.0,58268.0,3.23216679]
[1720804326123,0.0369889,58269.0,58268.0,3.26016679]
[1720804326501,0.0369889,58269.0,58268.0,2.55282579]
[1720804326701,0.0312889,58269.0,58268.0,2.55282579]
[1720804327519,0.0312889,58269.0,58268.0,2.53882579]
[1720804327722,0.0312889,58269.0,58268.0,2.55282579]
[1720804328147,0.0312889,58269.0,58268.0,3.28111233]
[1720804328359,0.0312889,58269.0,58268.0,3.35891233]
[1720804328573,0.0312889,58269.0,58268.0,3.37291233]
[1720804328773,0.0312889,58269.0,58268.0,3.35891233]
[1720804328982,0.0312889,58269.0,58268.0,3.37291233]
[1720804329188,0.0312889,58269.0,58268.0,3.35891233]
[1720804329745,0.0312889,58269.0,58268.0,3.0146901]
[1720804330150,1.0,58271.0,58268.0,3.0146901]
[1720804330151,0.98794335,58271.0,58270.0,2.60187055]
[1720804330360,0.92195424,58271.0,58270.0,4.58225834]
[1720804330564,0.00828,58277.0,58276.0,1.20040555]
[1720804330762,0.002,58289.0,58287.0,0.59505901]
[1720804331129,0.002,58289.0,58287.0,2.2779388]
[1720804331336,0.002,58289.0,58287.0,2.29252602]
[1720804332312,0.002,58289.0,58287.0,2.63565502]
[1720804332513,0.002,58289.0,58287.0,2.66365502]
[1720804332743,0.002,58289.0,58287.0,2.71630056]
[1720804333794,0.002,58289.0,58287.0,2.70230056]
[1720804334221,0.002,58289.0,58287.0,2.71630056]
[1720804334632,0.002,58289.0,58287.0,2.66365502]
[1720804335458,0.002,58289.0,58287.0,2.71630056]
[1720804335662,0.002,58289.0,58287.0,2.37207833]
[1720804335861,0.002,58289.0,58287.0,2.88089268]
[1720804336240,0.002,58289.0,58287.0,3.22402168]
[1720804336651,1.0,58300.0,58290.0,0.39859155]
[1720804336882,1.0,58300.0,58290.0,3.13867848]
[1720804337085,1.0,58300.0,58290.0,3.25325464]
[1720804337297,1.0,58300.0,58290.0,3.59636664]
[1720804337925,1.0,58300.0,58290.0,3.61036664]
[1720804338133,0.04497163,58291.0,58290.0,3.61036664]
[1720804338487,0.04497163,58291.0,58290.0,3.62436664]
[1720804338686,0.04497163,58291.0,58290.0,3.61036664]
[1720804338885,0.04497163,58291.0,58290.0,2.3903971]
[1720804339153,0.11157163,58291.0,58290.0,2.2971684]
[1720804339361,0.04497163,58291.0,58290.0,2.3111684]
[1720804339775,0.04497163,58291.0,58290.0,2.4111684]
[1720804340391,0.04497163,58291.0,58290.0,2.06522239]
[1720804340592,0.04497163,58291.0,58290.0,2.1341684]
[1720804341973,0.04497163,58291.0,58290.0,1.96017487]
[1720804342357,0.04497163,58291.0,58290.0,2.71573241]
[1720804342925,0.04497163,58291.0,58290.0,2.84363241]
[1720804342926,0.03417146,58291.0,58290.0,2.84363241]
[1720804343342,0.03759203,58297.0,58291.0,1.90544301]
[1720804343552,0.03759203,58297.0,58296.0,1.12872555]
[1720804343763,1.0,58300.0,58299.0,1.37175855]
[1720804344007,0.95501969,58300.0,58299.0,2.68836934]
[1720804344193,0.95501969,58300.0,58299.0,3.41204894]
[1720804344413,0.95501969,58300.0,58299.0,3.41512186]
[1720804344602,0.95501969,58300.0,58299.0,3.01628697]
[1720804344801,0.95501969,58300.0,58299.0,2.2921854]
[1720804345008,0.95501969,58300.0,58299.0,2.39212797]
[1720804345209,0.95501969,58300.0,58299.0,2.40612797]
[1720804345625,0.95501969,58300.0,58299.0,2.39212797]
[1720804345862,0.93309885,58300.0,58299.0,3.35934597]
[1720804346081,0.91457854,58300.0,58299.0,3.42599151]
[1720804346516,0.91457854,58300.0,58299.0,3.37334597]
[1720804346722,0.91457854,58300.0,58299.0,3.35934597]
[1720804346949,0.91457854,58300.0,58299.0,2.84918697]
[1720804347161,0.91457854,58300.0,58299.0,2.83518697]
[1720804347586,0.91457854,58300.0,58299.0,2.84918697]
[1720804347792,0.91457854,58300.0,58299.0,2.83518697]
[1720804348200,0.91457854,58300.0,58299.0,3.09693251]
[1720804348411,0.91457854,58300.0,58299.0,3.62807417]
[1720804348633,0.91457854,58300.0,58299.0,3.17101517]
[1720804348842,0.91457854,58300.0,58299.0,3.62807417]
[1720804349084,0.91457854,58300.0,58299.0,3.48385194]
[1720804349694,0.91457854,58300.0,58299.0,3.18385194]
[1720804349894,0.91457854,58300.0,58299.0,2.67031895]
[1720804350497,0.91457854,58300.0,58299.0,2.57037638]
[1720804351007,0.91457854,58300.0,58299.0,2.67031895]
[1720804351239,0.91457854,58300.0,58299.0,3.06602349]
[1720804351792,0.91457854,58300.0,58299.0,2.57037638]
[1720804352019,0.91457854,58300.0,58299.0,2.35420167]
[1720804352226,0.91457854,58300.0,58299.0,2.01114267]
[1720804352832,1.05937854,58300.0,58299.0,1.98814267]
[1720804353059,1.05937854,58300.0,58299.0,1.97751666]
[1720804353466,1.05937854,58300.0,58299.0,1.53445766]
[1720804353673,1.05937854,58300.0,58299.0,0.67681066]
[1720804353674,2.08170547,58300.0,58299.0,0.67681066]
[1720804353987,1.22407347,58300.0,58299.0,0.38766246]
[1720804354185,1.22407347,58300.0,58299.0,0.88825046]
[1720804354387,1.22407347,58300.0,58299.0,0.90225046]
[1720804354625,1.22407347,58300.0,58299.0,0.91625046]
[1720804354823,1.22407347,58300.0,58299.0,0.90225046]
[1720804355025,1.22407347,58300.0,58299.0,0.90125046]
[1720804355296,1.22407347,58300.0,58299.0,0.55819146]
[1720804355428,1.39559947,58300.0,58299.0,0.03060346]
[1720804355606,1.22407347,58300.0,58299.0,0.22813246]
[1720804355811,1.22407347,58300.0,58299.0,0.91425046]
[1720804356012,1.22407347,58300.0,58299.0,0.90025046]
[1720804357340,1.22407347,58300.0,58299.0,0.57119146]
[1720804357539,1.22407347,58300.0,58299.0,0.55919146]
[1720804357692,1.22407347,58300.0,58299.0,0.55719146]
[1720804357895,1.28023973,58300.0,58299.0,0.57119146]
[1720804358308,1.28006926,58300.0,58299.0,0.90225046]
[1720804358502,1.28006926,58300.0,58299.0,1.24530946]
[1720804358766,1.28006926,58300.0,58299.0,0.88825046]
[1720804358967,1.28006926,58300.0,58299.0,0.90225046]
[1720804359175,1.28006926,58300.0,58299.0,0.91625046]
[1720804360263,1.27971278,58300.0,58299.0,0.91625046]
[1720804360460,1.27971281,58300.0,58299.0,0.91625046]
[1720804361100,1.11501788,58300.0,58299.0,0.91625046]
[1720804361345,0.91457854,58300.0,58299.0,1.64831447]
[1720804361549,0.91457854,58300.0,58299.0,1.67131447]
[1720804361777,0.91457854,58300.0,58299.0,1.62536846]
[1720804362197,0.91457854,58300.0,58299.0,1.67131447]
[1720804362406,0.91457854,58300.0,58299.0,1.65731447]
[1720804362613,0.91457854,58300.0,58299.0,1.59736846]
[1720804364075,0.91457854,58300.0,58299.0,1.71136846]
[1720804364262,0.91457854,58300.0,58299.0,1.77131447]
[1720804364851,0.91457854,58300.0,58299.0,1.75731447]
[1720804365029,0.91457854,58300.0,58299.0,1.72536846]
[1720804367191,1.05587854,58300.0,58299.0,1.39243828]
[1720804367604,1.22057347,58300.0,58299.0,1.36943828]
[1720804367810,1.22057347,58300.0,58299.0,1.01625046]
[1720804368024,1.22057347,58300.0,58299.0,0.57319146]
[1720804368225,1.27452908,58300.0,58299.0,0.57319146]
[1720804368626,1.27452908,58300.0,58299.0,0.91625046]
[1720804368838,1.22057347,58300.0,58299.0,0.91625046]
[1720804369055,1.27348357,58300.0,58299.0,0.91625046]
[1720804369499,1.27348357,58300.0,58299.0,1.25930946]
[1720804369731,1.27348357,58300.0,58299.0,0.91625046]
[1720804370322,1.27356274,58300.0,58299.0,0.91625046]
[1720804370522,1.03311989,58300.0,58299.0,1.25930946]
[1720804370730,0.97967854,58300.0,58299.0,1.25930946]
[1720804372212,0.91457854,58300.0,58299.0,1.25930946]
[1720804372617,0.91457854,58300.0,58299.0,1.60236846]
[1720804372821,0.91457854,58300.0,58299.0,1.63375287]
[1720804373021,0.91457854,58300.0,58299.0,1.65675287]
[1720804373225,0.91457854,58300.0,58299.0,1.67408991]
[1720804373637,0.91457854,58300.0,58299.0,1.6281439]
[1720804375581,0.91457854,58300.0,58299.0,1.67408991]
[1720804375813,0.91457854,58300.0,58299.0,2.44002315]
[1720804376021,0.91457854,58300.0,58299.0,2.77972315]
[1720804376222,0.91457854,58300.0,58299.0,2.72707761]
[1720804376394,0.91457854,58300.0,58299.0,2.77842759]
[1720804376827,0.91457854,58300.0,58299.0,2.83107313]
[1720804377019,0.91457854,58300.0,58299.0,2.83111191]
[1720804377177,0.91457854,58300.0,58299.0,2.77972315]
[1720804378768,0.91457854,58300.0,58299.0,2.79033782]
[1720804379194,0.91457854,58300.0,58299.0,2.73769228]
[1720804379438,0.91457854,58300.0,58299.0,2.79033782]
[1720804380270,0.91457854,58300.0,58299.0,2.73769228]